fUSD/lending_fUSD_20240514
["ID","MTS","AMOUNT","RATE_DAILY","PERIOD"]
[327000175,1715697055422,-151.0,0.0001299,2]
[327000176,1715697055432,-5941.84,0.0001299,2]
[327000177,1715697055442,-378.42,0.0001299,2]
[327000178,1715697055452,-500.0,0.0001299,2]
[327000179,1715697055461,-1610.25,0.0001299,2]
[327000180,1715697055471,-151.0,0.0001299,2]
[327000181,1715697055480,-1291.485134,0.0001299,2]
[327000182,1715697055490,-151.0,0.0001299,2]
[327000183,1715697055499,-1291.485134,0.0001299,2]
[327000184,1715697055509,-998.81,0.0001299,2]
[327000185,1715697055518,-151.0,0.0001299,2]
[327000186,1715697055527,-803.646284,0.0001299,2]
[327000187,1715697055536,-803.646284,0.0001299,2]
[327000188,1715697055545,-330.17,0.0001299,2]
[327000189,1715697055554,-736.939888,0.0001299,2]
[327000190,1715697055564,-151.0,0.0001299,2]
[327000191,1715697055573,-357.87,0.0001299,2]
[327000192,1715697055582,-736.939888,0.0001299,2]
[327000193,1715697055591,-151.0,0.0001299,2]
[327000194,1715697055600,-500.0,0.0001299,2]
[327000195,1715697055609,-500.0,0.0001299,2]
[327000196,1715697055621,-554.08,0.0001299,2]
[327000197,1715697055630,-151.0,0.0001299,2]
[327000198,1715697055639,-500.0,0.0001299,2]
[327000199,1715697055647,-599.58,0.0001299,2]
[327000200,1715697055656,-271.222379,0.0001299,2]
[327000201,1715697055666,-151.0,0.0001299,2]
[327000202,1715697055675,-552.3,0.0001299,2]
[327000203,1715697055685,-151.0,0.0001299,2]
[327000204,1715697055695,-151.0,0.0001299,2]
[327000205,1715697055704,-271.222379,0.0001299,2]
[327000206,1715697055713,-500.0,0.0001299,2]
[327000207,1715697055723,-179.123444,0.0001299,2]
[327000208,1715697055733,-179.123444,0.0001299,2]
[327000209,1715697055743,-500.0,0.0001299,2]
[327000210,1715697055754,-202.153595,0.0001299,2]
[327000211,1715697055764,-151.0,0.0001299,2]
[327000212,1715697055775,-151.0,0.0001299,2]
[327000213,1715697055786,-264.71,0.0001299,2]
[327000214,1715697055795,-202.153595,0.0001299,2]
[327000215,1715697055804,-500.0,0.0001299,2]
[327000216,1715697055814,-151.0,0.0001299,2]
[327000217,1715697055823,-151.0,0.0001299,2]
[327000218,1715697055833,-500.0,0.0001299,2]
[327000219,1715697055844,-1410.6097037,0.00012991,2]
[327000220,1715697055853,-508.8639642,0.00012991,2]
[327000221,1715697055863,-188.9480118,0.00012991,2]
[327000222,1715697055875,-18360.2316762,0.00012991,2]
[327000223,1715697055884,-598.8824755,0.00012991,2]
[327000224,1715697055893,-1522.3062682,0.00012991,2]
[327000225,1715697055902,-500.0,0.00012994,2]
[327000226,1715697055913,-723.65,0.00012994,2]
[327000227,1715697055923,-699.22,0.00012995,2]
[327000228,1715697055933,-10339.65,0.00012995,2]
[327000229,1715697055943,-698.38,0.00012995,2]
[327000230,1715697055952,-779.14,0.00012995,2]
[327000231,1715697055961,-500.0,0.00012995,2]
[327000232,1715697055971,-500.0,0.00012995,2]
[327000233,1715697055981,-500.0,0.00012995,2]
[327000234,1715697055991,-624.18,0.00012995,2]
[327000235,1715697056000,-500.0,0.00012995,2]
[327000236,1715697056010,-602.21,0.00012995,2]
[327000237,1715697056019,-1546.66,0.00012995,2]
[327000238,1715697056028,-784.73,0.00012995,2]
[327000239,1715697056039,-813.68,0.00012995,2]
[327000240,1715697056050,-500.0,0.00012996,2]
[327000241,1715697056059,-500.0,0.00012996,2]
[327000242,1715697056069,-500.0,0.00012996,2]
[327000243,1715697056079,-500.0,0.00012996,2]
[327000244,1715697056088,-571.97,0.00012996,2]
[327000245,1715697056097,-500.0,0.00012996,2]
[327000246,1715697056106,-500.0,0.00012996,2]
[327000247,1715697056117,-500.0,0.00012996,2]
[327000248,1715697056127,-500.0,0.00012996,2]
[327000249,1715697056136,-500.0,0.00012996,2]
[327000250,1715697056145,-500.0,0.00012996,2]
[327000251,1715697056154,-544.29,0.00012996,2]
[327000252,1715697056164,-500.0,0.00012996,2]
[327000253,1715697056173,-500.0,0.00012996,2]
[327000254,1715697056184,-665.73,0.00012996,2]
[327000255,1715697056198,-500.0,0.00012996,2]
[327000256,1715697056207,-317.48,0.00012996,2]
[327000257,1715697056216,-645.57,0.00012996,2]
[327000258,1715697056227,-500.0,0.00012996,2]
[327000259,1715697056236,-500.0,0.00012996,2]
[327000260,1715697056245,-500.0,0.00012996,2]
[327000261,1715697056254,-298.12,0.00012996,2]
[327000262,1715697056264,-500.0,0.00012996,2]
[327000263,1715697056275,-500.0,0.00012996,2]
[327000264,1715697056286,-500.0,0.00012996,2]
[327000265,1715697056295,-500.0,0.00012996,2]
[327000266,1715697056305,-500.0,0.00012996,2]
[327000267,1715697056314,-151.0,0.00012996,2]
[327000268,1715697056323,-560.12,0.00012996,2]
[327000269,1715697056332,-151.0,0.00012996,2]
[327000270,1715697056341,-500.0,0.00012996,2]
[327000271,1715697056351,-151.0,0.00012996,2]
[327000272,1715697056360,-202.293002,0.00012996,2]
[327000273,1715697056372,-151.0,0.00012996,2]
[327000274,1715697056382,-151.0,0.00012996,2]
[327000275,1715697056391,-500.0,0.00012996,2]
[327000276,1715697056401,-151.0,0.00012996,2]
[327000277,1715697056411,-258.631447,0.00012996,2]
[327000278,1715697056420,-258.631447,0.00012996,2]
[327000279,1715697056429,-151.0,0.00012996,2]
[327000280,1715697056439,-863.17,0.00012996,2]
[327000281,1715697056447,-155.186976,0.00012996,2]
[327000282,1715697056456,-151.0,0.00012996,2]
[327000283,1715697056466,-155.186976,0.00012996,2]
[327000284,1715697056475,-500.0,0.00012996,2]
[327000285,1715697056484,-151.0,0.00012996,2]
[327000286,1715697056493,-507.78,0.00012996,2]
[327000287,1715697056503,-877.22,0.00012996,2]
[327000288,1715697056512,-500.0,0.00012996,2]
[327000289,1715697056521,-603.040448,0.00012996,2]
[327000290,1715697056530,-500.0,0.00012996,2]
[327000291,1715697056539,-603.040448,0.00012996,2]
[327000292,1715697056548,-748.49,0.00012996,2]
[327000293,1715697056557,-169.114821,0.00012996,2]
[327000294,1715697056566,-500.0,0.00012996,2]
[327000295,1715697056576,-169.114821,0.00012996,2]
[327000296,1715697056585,-1235.45,0.00012996,2]
[327000297,1715697056594,-151.0,0.00012996,2]
[327000298,1715697056603,-1148.57,0.00012996,2]
[327000299,1715697056612,-151.0,0.00012996,2]
[327000300,1715697056624,-151.0,0.00012996,2]
[327000301,1715697056634,-5941.84,0.00012996,2]
[327000302,1715697056643,-2158.36,0.00012996,2]
[327000303,1715697056652,-500.0,0.00012996,2]
[327000304,1715697056661,-500.0,0.00012996,2]
[327000305,1715697056674,-745.1,0.00012996,2]
[327000306,1715697056684,-520.43,0.00012996,2]
[327000307,1715697056698,-151.0,0.00012996,2]
[327000308,1715697056708,-500.0,0.00012996,2]
[327000309,1715697056719,-1291.485134,0.00012996,2]
[327000310,1715697056729,-151.0,0.00012996,2]
[327000311,1715697056739,-1291.485134,0.00012996,2]
[327000312,1715697056750,-612.62,0.00012996,2]
[327000313,1715697056759,-1091.45,0.00012996,2]
[327000314,1715697056769,-998.81,0.00012996,2]
[327000315,1715697056778,-151.0,0.00012996,2]
[327000316,1715697056788,-803.646284,0.00012996,2]
[327000317,1715697056798,-500.0,0.00012996,2]
[327000318,1715697056808,-500.0,0.00012996,2]
[327000319,1715697056817,-803.646284,0.00012996,2]
[327000320,1715697056827,-736.939888,0.00012996,2]
[327000321,1715697056836,-151.0,0.00012996,2]
[327000322,1715697056846,-736.939888,0.00012996,2]
[327000323,1715697056856,-151.0,0.00012996,2]
[327000324,1715697056869,-1234.21,0.00012996,2]
[327000325,1715697056879,-554.08,0.00012996,2]
[327000326,1715697056888,-500.0,0.00012996,2]
[327000327,1715697056897,-524.38,0.00012996,2]
[327000328,1715697056906,-151.0,0.00012996,2]
[327000329,1715697056916,-500.0,0.00012996,2]
[327000330,1715697056926,-1075.27,0.00012996,2]
[327000331,1715697056935,-584.52,0.00012996,2]
[327000332,1715697056945,-500.0,0.00012996,2]
[327000333,1715697056955,-1697.25,0.00012996,2]
[327000334,1715697056965,-1353.94,0.00012996,2]
[327000335,1715697056974,-271.222379,0.00012996,2]
[327000336,1715697056983,-576.32,0.00012996,2]
[327000337,1715697056992,-151.0,0.00012996,2]
[327000338,1715697057002,-1550.78,0.00012996,2]
[327000339,1715697057011,-151.0,0.00012996,2]
[327000340,1715697057020,-151.0,0.00012996,2]
[327000341,1715697057030,-271.222379,0.00012996,2]
[327000342,1715697057040,-1363.23,0.00012996,2]
[327000343,1715697057049,-500.0,0.00012996,2]
[327000344,1715697057059,-179.123444,0.00012996,2]
[327000345,1715697057069,-1404.32,0.00012996,2]
[327000346,1715697057078,-179.123444,0.00012996,2]
[327000347,1715697057087,-500.0,0.00012996,2]
[327000348,1715697057096,-290.85,0.00012996,2]
[327000349,1715697057106,-202.153595,0.00012996,2]
[327000350,1715697057119,-500.0,0.00012996,2]
[327000351,1715697057128,-500.0,0.00012996,2]
[327000352,1715697057137,-151.0,0.00012996,2]
[327000353,1715697057146,-225.708701,0.00012996,2]
[327000354,1715697057156,-5101.26,0.00012996,2]
[327000355,1715697057165,-202.153595,0.00012996,2]
[327000356,1715697057174,-500.0,0.00012996,2]
[327000357,1715697057184,-241.246773,0.00012996,2]
[327000358,1715697057192,-2189.45,0.00012996,2]
[327000359,1715697057206,-151.0,0.00012996,2]
[327000360,1715697057215,-906.41,0.00012996,2]
[327000361,1715697057227,-500.0,0.00012996,2]
[327000362,1715697057236,-500.0,0.00012996,2]
[327000363,1715697057245,-500.0,0.00012996,2]
[327000364,1715697057255,-552.4,0.00012996,2]
[327000365,1715697057265,-5269.99465171,0.00012997,2]
[327000366,1715697057276,-218.28084152,0.00012997,2]
[327000367,1715697057286,-160.0,0.00012997,2]
[327000368,1715697057295,-231.06136771,0.00012997,2]
[327000369,1715697057305,-155.0,0.00012997,2]
[327000370,1715697057315,-324.477102,0.00012997,2]
[327000371,1715697057326,-324.477102,0.00012997,2]
[327000372,1715697057334,-500.0,0.00012997,2]
[327000373,1715697057342,-500.0,0.00012997,2]
[327000374,1715697057351,-500.0,0.00012997,2]
[327000375,1715697057360,-500.0,0.00012997,2]
[327000376,1715697057373,-500.0,0.00012997,2]
[327000377,1715697057382,-500.0,0.00012997,2]
[327000378,1715697057391,-500.0,0.00012997,2]
[327000379,1715697057399,-378.84,0.00012997,2]
[327000380,1715697057408,-500.0,0.00012997,2]
[327000381,1715697057417,-535.52,0.00012997,2]
[327000382,1715697057427,-496.28,0.00012997,2]
[327000383,1715697057436,-500.0,0.00012997,2]
[327000384,1715697057446,-500.0,0.00012997,2]
[327000385,1715697057456,-1230.68,0.00012997,2]
[327000386,1715697057465,-1230.68,0.00012997,2]
[327000387,1715697057475,-500.0,0.00012997,2]
[327000388,1715697057484,-500.0,0.00012997,2]
[327000389,1715697057493,-500.0,0.00012997,2]
[327000390,1715697057502,-272.2,0.00012997,2]
[327000391,1715697057512,-435.62,0.00012997,2]
[327000392,1715697057522,-151.0,0.00012997,2]
[327000393,1715697057531,-500.0,0.00012997,2]
[327000394,1715697057540,-500.0,0.00012997,2]
[327000395,1715697057554,-510.08,0.00012997,2]
[327000396,1715697057564,-151.0,0.00012997,2]
[327000397,1715697057574,-151.0,0.00012997,2]
[327000398,1715697057584,-151.0,0.00012997,2]
[327000399,1715697057594,-954.27,0.00012997,2]
[327000400,1715697057604,-954.27,0.00012997,2]
[327000401,1715697057615,-395.24,0.00012997,2]
[327000402,1715697057627,-500.0,0.00012997,2]
[327000403,1715697057636,-500.0,0.00012997,2]
[327000404,1715697057645,-151.0,0.00012997,2]
[327000405,1715697057655,-500.0,0.00012997,2]
[327000406,1715697057664,-500.0,0.00012997,2]
[327000407,1715697057674,-500.0,0.00012997,2]
[327000408,1715697057687,-500.0,0.00012997,2]
[327000409,1715697057697,-500.0,0.00012997,2]
[327000410,1715697057707,-500.0,0.00012997,2]
[327000411,1715697057718,-500.0,0.00012997,2]
[327000412,1715697057727,-151.0,0.00012997,2]
[327000413,1715697057738,-151.0,0.00012997,2]
[327000414,1715697057748,-151.0,0.00012997,2]
[327000415,1715697057759,-500.0,0.00012997,2]
[327000416,1715697057769,-500.0,0.00012997,2]
[327000417,1715697057779,-1215.88,0.00012997,2]
[327000418,1715697057789,-1215.88,0.00012997,2]
[327000419,1715697057798,-571.97,0.00012997,2]
[327000420,1715697057808,-903.37,0.00012997,2]
[327000421,1715697057819,-903.37,0.00012997,2]
[327000422,1715697057828,-500.0,0.00012997,2]
[327000423,1715697057838,-500.0,0.00012997,2]
[327000424,1715697057847,-151.0,0.00012997,2]
[327000425,1715697057856,-500.0,0.00012997,2]
[327000426,1715697057868,-500.0,0.00012997,2]
[327000427,1715697057878,-185.791262,0.00012997,2]
[327000428,1715697057887,-500.0,0.00012997,2]
[327000429,1715697057896,-1211.51,0.00012997,2]
[327000430,1715697057906,-1211.51,0.00012997,2]
[327000431,1715697057916,-500.0,0.00012997,2]
[327000432,1715697057925,-185.791262,0.00012997,2]
[327000433,1715697057934,-544.29,0.00012997,2]
[327000434,1715697057945,-150.48,0.00012997,2]
[327000435,1715697057954,-503.67431841,0.00012997,2]
[327000436,1715697057964,-500.0,0.00012997,2]
[327000437,1715697057974,-665.73,0.00012997,2]
[327000438,1715697057983,-151.0,0.00012997,2]
[327000439,1715697057992,-151.0,0.00012997,2]
[327000440,1715697058002,-151.0,0.00012997,2]
[327000441,1715697058011,-500.0,0.00012997,2]
[327000442,1715697058021,-151.0,0.00012997,2]
[327000443,1715697058031,-645.57,0.00012997,2]
[327000444,1715697058041,-500.0,0.00012997,2]
[327000445,1715697058051,-500.0,0.00012997,2]
[327000446,1715697058062,-500.0,0.00012997,2]
[327000447,1715697058071,-1183.33,0.00012997,2]
[327000448,1715697058081,-1183.33,0.00012997,2]
[327000449,1715697058090,-500.0,0.00012997,2]
[327000450,1715697058100,-151.0,0.00012997,2]
[327000451,1715697058110,-500.0,0.00012997,2]
[327000452,1715697058122,-151.0,0.00012997,2]
[327000453,1715697058132,-500.0,0.00012997,2]
[327000454,1715697058141,-500.0,0.00012997,2]
[327000455,1715697058150,-151.0,0.00012997,2]
[327000456,1715697058159,-500.0,0.00012997,2]
[327000457,1715697058167,-151.0,0.00012997,2]
[327000458,1715697058176,-500.0,0.00012997,2]
[327000459,1715697058187,-500.0,0.00012997,2]
[327000460,1715697058200,-699.22,0.00012997,2]
[327000461,1715697058209,-699.22,0.00012997,2]
[327000462,1715697058219,-500.0,0.00012997,2]
[327000463,1715697058230,-500.0,0.00012997,2]
[327000464,1715697058240,-863.17,0.00012997,2]
[327000465,1715697058250,-500.0,0.00012997,2]
[327000466,1715697058260,-507.78,0.00012997,2]
[327000467,1715697058272,-10339.65,0.00012997,2]
[327000468,1715697058281,-10339.65,0.00012997,2]
[327000469,1715697058291,-877.22,0.00012997,2]
[327000470,1715697058301,-500.0,0.00012997,2]
[327000471,1715697058310,-500.0,0.00012997,2]
[327000472,1715697058320,-500.0,0.00012997,2]
[327000473,1715697058330,-698.38,0.00012997,2]
[327000474,1715697058339,-698.38,0.00012997,2]
[327000475,1715697058349,-748.49,0.00012997,2]
[327000476,1715697058359,-500.0,0.00012997,2]
[327000477,1715697058372,-500.0,0.00012997,2]
[327000478,1715697058381,-500.0,0.00012997,2]
[327000479,1715697058390,-500.0,0.00012997,2]
[327000480,1715697058400,-500.0,0.00012997,2]
[327000481,1715697058410,-1235.45,0.00012997,2]
[327000482,1715697058419,-1148.57,0.00012997,2]
[327000483,1715697058428,-5941.84,0.00012997,2]
[327000484,1715697058438,-2158.36,0.00012997,2]
[327000485,1715697058448,-2158.36,0.00012997,2]
[327000486,1715697058459,-779.14,0.00012997,2]
[327000487,1715697058469,-779.14,0.00012997,2]
[327000488,1715697058478,-500.0,0.00012997,2]
[327000489,1715697058487,-500.0,0.00012997,2]
[327000490,1715697058498,-500.0,0.00012997,2]
[327000491,1715697058508,-500.0,0.00012997,2]
[327000492,1715697058659,-500.0,0.00012997,2]
[327000493,1715697058669,-1610.25,0.00012997,2]
[327000494,1715697058678,-1610.25,0.00012997,2]
[327000495,1715697058688,-745.1,0.00012997,2]
[327000496,1715697058698,-500.0,0.00012997,2]
[327000497,1715697058707,-500.0,0.00012997,2]
[327000498,1715697058717,-520.43,0.00012997,2]
[327000499,1715697058726,-500.0,0.00012997,2]
[327000500,1715697058736,-500.0,0.00012997,2]
[327000501,1715697058745,-500.0,0.00012997,2]
[327000502,1715697058755,-500.0,0.00012997,2]
[327000503,1715697058764,-545.09,0.00012997,2]
[327000504,1715697058773,-612.62,0.00012997,2]
[327000505,1715697058783,-612.62,0.00012997,2]
[327000506,1715697058792,-1091.45,0.00012997,2]
[327000507,1715697058801,-998.81,0.00012997,2]
[327000508,1715697058810,-624.18,0.00012997,2]
[327000509,1715697058819,-624.18,0.00012997,2]
[327000510,1715697058829,-500.0,0.00012997,2]
[327000511,1715697058838,-500.0,0.00012997,2]
[327000512,1715697058847,-1234.21,0.00012997,2]
[327000513,1715697058857,-500.0,0.00012997,2]
[327000514,1715697058870,-260.89,0.00012997,2]
[327000515,1715697058880,-500.0,0.00012997,2]
[327000516,1715697058890,-500.0,0.00012997,2]
[327000517,1715697058901,-554.08,0.00012997,2]
[327000518,1715697058912,-500.0,0.00012997,2]
[327000519,1715697058923,-524.38,0.00012997,2]
[327000520,1715697058934,-524.38,0.00012997,2]
[327000521,1715697058945,-500.0,0.00012997,2]
[327000522,1715697058955,-1075.27,0.00012997,2]
[327000523,1715697058965,-638.35412856,0.00012997,2]
[327000524,1715697058975,-584.52,0.00012997,2]
[327000525,1715697058984,-500.0,0.00012997,2]
[327000526,1715697058994,-500.0,0.00012997,2]
[327000527,1715697059003,-1697.25,0.00012997,2]
[327000528,1715697059012,-1353.94,0.00012997,2]
[327000529,1715697059022,-723.65,0.00012997,2]
[327000530,1715697059032,-723.65,0.00012997,2]
[327000531,1715697059041,-602.21,0.00012997,2]
[327000532,1715697059051,-602.21,0.00012997,2]
[327000533,1715697059060,-576.32,0.00012997,2]
[327000534,1715697059071,-1550.78,0.00012997,2]
[327000535,1715697059080,-1546.66,0.00012997,2]
[327000536,1715697059090,-1546.66,0.00012997,2]
[327000537,1715697059099,-1363.23,0.00012997,2]
[327000538,1715697059109,-500.0,0.00012997,2]
[327000539,1715697059119,-784.73,0.00012997,2]
[327000540,1715697059129,-784.73,0.00012997,2]
[327000541,1715697059138,-1404.32,0.00012997,2]
[327000542,1715697059147,-500.0,0.00012997,2]
[327000543,1715697059156,-813.68,0.00012997,2]
[327000544,1715697059166,-813.68,0.00012997,2]
[327000545,1715697059175,-500.0,0.00012997,2]
[327000546,1715697059185,-500.0,0.00012997,2]
[327000547,1715697059195,-500.0,0.00012997,2]
[327000548,1715697059210,-5101.26,0.00012997,2]
[327000549,1715697059220,-500.0,0.00012997,2]
[327000550,1715697059231,-2189.45,0.00012997,2]
[327000551,1715697059240,-2189.45,0.00012997,2]
[327000552,1715697059250,-906.41,0.00012997,2]
[327000553,1715697059261,-500.0,0.00012997,2]
[327000554,1715697059271,-500.0,0.00012997,2]
[327000555,1715697059283,-500.0,0.00012997,2]
[327000556,1715697059292,-324.477102,0.00012998,2]
[327000557,1715697059302,-324.477102,0.00012998,2]
[327000558,1715697059311,-324.477102,0.00012998,2]
[327000559,1715697059321,-324.477102,0.00012998,2]
[327000560,1715697059330,-500.0,0.00012998,2]
[327000561,1715697059340,-522.35,0.00012998,2]
[327000562,1715697059349,-645.15,0.00012998,2]
[327000563,1715697059359,-500.0,0.00012998,2]
[327000564,1715697059371,-500.0,0.00012998,2]
[327000565,1715697059380,-500.0,0.00012998,2]
[327000566,1715697059389,-500.0,0.00012998,2]
[327000567,1715697059399,-500.0,0.00012998,2]
[327000568,1715697059408,-500.0,0.00012998,2]
[327000569,1715697059417,-500.0,0.00012998,2]
[327000570,1715697059426,-500.0,0.00012998,2]
[327000571,1715697059435,-203.56,0.00012998,2]
[327000572,1715697059444,-1230.68,0.00012998,2]
[327000573,1715697059453,-1230.68,0.00012998,2]
[327000574,1715697059463,-500.0,0.00012998,2]
[327000575,1715697059472,-1230.68,0.00012998,2]
[327000576,1715697059481,-500.0,0.00012998,2]
[327000577,1715697059491,-500.0,0.00012998,2]
[327000578,1715697059500,-151.0,0.00012998,2]
[327000579,1715697059509,-151.0,0.00012998,2]
[327000580,1715697059519,-500.0,0.00012998,2]
[327000581,1715697059529,-500.0,0.00012998,2]
[327000582,1715697059538,-500.0,0.00012998,2]
[327000583,1715697059548,-151.0,0.00012998,2]
[327000584,1715697059558,-197.623084,0.00012998,2]
[327000585,1715697059567,-151.0,0.00012998,2]
[327000586,1715697059577,-151.0,0.00012998,2]
[327000587,1715697059587,-954.27,0.00012998,2]
[327000588,1715697059597,-954.27,0.00012998,2]
[327000589,1715697059606,-954.27,0.00012998,2]
[327000590,1715697059615,-500.0,0.00012998,2]
[327000591,1715697059626,-500.0,0.00012998,2]
[327000592,1715697059636,-500.0,0.00012998,2]
[327000593,1715697059645,-179.051479,0.00012998,2]
[327000594,1715697059654,-500.0,0.00012998,2]
[327000595,1715697059664,-500.0,0.00012998,2]
[327000596,1715697059673,-500.0,0.00012998,2]
[327000597,1715697059683,-500.0,0.00012998,2]
[327000598,1715697059693,-500.0,0.00012998,2]
[327000599,1715697059703,-500.0,0.00012998,2]
[327000600,1715697059712,-500.0,0.00012998,2]
[327000601,1715697059723,-500.0,0.00012998,2]
[327000602,1715697059732,-500.0,0.00012998,2]
[327000603,1715697059744,-500.0,0.00012998,2]
[327000604,1715697059754,-500.0,0.00012998,2]
[327000605,1715697059764,-288.63,0.00012998,2]
[327000606,1715697059774,-500.0,0.00012998,2]
[327000607,1715697059784,-500.0,0.00012998,2]
[327000608,1715697059793,-500.0,0.00012998,2]
[327000609,1715697059803,-151.0,0.00012998,2]
[327000610,1715697059813,-151.0,0.00012998,2]
[327000611,1715697059822,-151.0,0.00012998,2]
[327000612,1715697059831,-151.0,0.00012998,2]
[327000613,1715697059841,-500.0,0.00012998,2]
[327000614,1715697059850,-500.0,0.00012998,2]
[327000615,1715697059859,-1215.88,0.00012998,2]
[327000616,1715697059869,-500.0,0.00012998,2]
[327000617,1715697059879,-1215.88,0.00012998,2]
[327000618,1715697059888,-1215.88,0.00012998,2]
[327000619,1715697059897,-571.97,0.00012998,2]
[327000620,1715697059906,-571.97,0.00012998,2]
[327000621,1715697059915,-571.97,0.00012998,2]
[327000622,1715697059926,-571.97,0.00012998,2]
[327000623,1715697059935,-903.37,0.00012998,2]
[327000624,1715697059946,-903.37,0.00012998,2]
[327000625,1715697059955,-903.37,0.00012998,2]
[327000626,1715697059964,-500.0,0.00012998,2]
[327000627,1715697059973,-500.0,0.00012998,2]
[327000628,1715697059983,-500.0,0.00012998,2]
[327000629,1715697059992,-500.0,0.00012998,2]
[327000630,1715697060002,-500.0,0.00012998,2]
[327000631,1715697060011,-151.0,0.00012998,2]
[327000632,1715697060020,-500.0,0.00012998,2]
[327000633,1715697060030,-500.0,0.00012998,2]
[327000634,1715697060039,-151.0,0.00012998,2]
[327000635,1715697060049,-500.0,0.00012998,2]
[327000636,1715697060058,-500.0,0.00012998,2]
[327000637,1715697060067,-500.0,0.00012998,2]
[327000638,1715697060077,-500.0,0.00012998,2]
[327000639,1715697060086,-500.0,0.00012998,2]
[327000640,1715697060096,-500.0,0.00012998,2]
[327000641,1715697060107,-500.0,0.00012998,2]
[327000642,1715697060117,-500.0,0.00012998,2]
[327000643,1715697060131,-500.0,0.00012998,2]
[327000644,1715697060141,-185.791262,0.00012998,2]
[327000645,1715697060151,-185.791262,0.00012998,2]
[327000646,1715697060160,-500.0,0.00012998,2]
[327000647,1715697060169,-500.0,0.00012998,2]
[327000648,1715697060178,-500.0,0.00012998,2]
[327000649,1715697060192,-500.0,0.00012998,2]
[327000650,1715697060201,-1211.51,0.00012998,2]
[327000651,1715697060213,-1211.51,0.00012998,2]
[327000652,1715697060223,-1211.51,0.00012998,2]
[327000653,1715697060232,-500.0,0.00012998,2]
[327000654,1715697060243,-182.28,0.00012998,2]
[327000655,1715697060252,-185.791262,0.00012998,2]
[327000656,1715697060261,-185.791262,0.00012998,2]
[327000657,1715697060271,-544.29,0.00012998,2]
[327000658,1715697060282,-544.29,0.00012998,2]
[327000659,1715697060291,-544.29,0.00012998,2]
[327000660,1715697060301,-500.0,0.00012998,2]
[327000661,1715697060311,-500.0,0.00012998,2]
[327000662,1715697060321,-500.0,0.00012998,2]
[327000663,1715697060331,-481.12,0.00012998,2]
[327000664,1715697060340,-665.73,0.00012998,2]
[327000665,1715697060350,-665.73,0.00012998,2]
[327000666,1715697060359,-665.73,0.00012998,2]
[327000667,1715697060368,-665.73,0.00012998,2]
[327000668,1715697060380,-151.0,0.00012998,2]
[327000669,1715697060389,-151.0,0.00012998,2]
[327000670,1715697060399,-151.0,0.00012998,2]
[327000671,1715697060407,-151.0,0.00012998,2]
[327000672,1715697060417,-292.488634,0.00012998,2]
[327000673,1715697060426,-500.0,0.00012998,2]
[327000674,1715697060436,-500.0,0.00012998,2]